bitfinex-derivatives/quotes_ETHF0:USTF0_20241105
["timestamp","ask_amount","ask_price","bid_price","bid_amount"]
[1730765359727,0.41654,2402.0,2401.8,0.41657]
[1730765360031,7.20697998,2402.5,2402.0,0.41654]
[1730765360223,0.41651,2402.3,2402.0,0.41654]
[1730765360530,0.41651,2402.2,2402.0,0.41654]
[1730765361126,0.41651,2402.2,2401.9,0.41655]
[1730765361329,0.41653,2402.1,2401.9,0.41655]
[1730765362024,0.41653,2402.1,2401.8,0.41657]
[1730765362225,40.8,2402.0,2401.8,0.41657]
[1730765362427,40.8,2402.0,2401.9,0.41656]
[1730765363524,40.8,2402.0,2401.8,0.41657]
[1730765363724,40.8,2402.0,2401.5,3.2078]
[1730765363725,3.99917998,2402.0,2401.5,3.2078]
[1730765363926,7.20697998,2401.7,2400.7,3.8336]
[1730765364130,7.20697998,2401.7,2401.0,3.62451]
[1730765364131,0.41669,2401.2,2401.0,3.62451]
[1730765364326,0.41667,2401.3,2401.1,0.41669]
[1730765364633,0.41674,2400.9,2400.7,0.41676]
[1730765364832,7.20697998,2401.4,2400.4,3.2078]
[1730765365033,7.20697998,2401.4,2400.7,0.41676]
[1730765365229,7.20697998,2401.1,2400.5,0.41679]
[1730765365432,0.41674,2400.9,2400.3,1.216]
[1730765365736,6.99841983,2401.1,2400.7,0.41675]
[1730765366041,0.41673,2401.0,2400.7,0.41675]
[1730765366239,0.41672,2401.0,2400.8,0.41675]
[1730765366440,7.41512983,2401.1,2400.8,0.41675]
[1730765366633,6.99841983,2401.1,2400.4,3.2078]
[1730765366835,0.41672,2401.0,2400.8,0.41675]
[1730765367030,3.2078,2401.1,2400.9,0.41673]
[1730765367235,3.6245,2401.1,2400.4,3.2078]
[1730765367638,3.6245,2401.1,2400.9,0.41673]
[1730765368138,3.6245,2401.1,2400.4,3.2078]
[1730765368333,3.2078,2401.1,2400.9,0.41673]
[1730765368537,3.2078,2401.4,2400.4,3.2078]
[1730765368737,0.41667,2401.3,2400.7,3.2078]
[1730765369043,0.41667,2401.3,2401.1,0.4167]
[1730765369241,0.41667,2401.3,2400.7,3.2078]
[1730765369429,0.41667,2401.3,2401.0,0.41671]
[1730765369850,3.2078,2401.4,2400.7,3.2078]
[1730765370144,3.2078,2401.4,2401.2,0.41667]
[1730765371142,3.62445,2401.4,2401.1,0.41669]
[1730765371336,3.2078,2401.4,2401.0,3.2078]
[1730765371539,3.2078,2401.4,2401.2,0.41668]
[1730765371837,3.62446,2401.4,2401.1,0.41669]
[1730765372045,3.2078,2401.4,2401.2,0.41667]
[1730765372238,3.2078,2401.4,2401.3,0.41667]
[1730765373844,0.41667,2401.3,2401.0,0.4167]
[1730765374048,11.37097998,2401.4,2401.0,0.4167]
[1730765374236,0.41668,2401.3,2401.0,0.4167]
[1730765374545,0.41675,2400.8,2400.7,3.2078]
[1730765374950,7.20697998,2401.1,2400.7,3.2078]
[1730765375246,0.41674,2400.9,2400.7,3.62457]
[1730765375441,0.41674,2400.9,2400.7,3.2078]
[1730765375641,0.41674,2400.9,2400.7,3.62457]
[1730765375843,0.41673,2401.0,2400.7,3.62457]
[1730765376347,0.41672,2401.0,2400.7,3.62457]
[1730765376539,0.41673,2401.0,2400.7,3.62457]
[1730765377041,7.20697998,2401.1,2400.7,3.62457]
[1730765377242,0.41674,2400.9,2400.7,3.62457]
[1730765377649,7.20697998,2401.1,2400.7,3.2078]
[1730765378348,0.4168,2400.6,2400.4,0.41682]
[1730765378544,3.99917998,2400.8,2400.3,3.2078]
[1730765378743,0.41681,2400.5,2400.3,3.62463]
[1730765379238,3.99917998,2400.8,2400.1,1.238]
[1730765379239,7.20697998,2400.8,2400.1,1.238]
[1730765379439,0.41678,2400.7,2400.5,0.4168]
[1730765379844,7.62374998,2400.8,2400.5,0.41679]
[1730765380046,3.2078,2400.8,2400.2,1.04212]
[1730765380254,3.2078,2400.8,2400.7,0.41677]
[1730765380453,3.2078,2400.8,2400.3,3.2078]
[1730765380645,3.2078,2400.8,2400.7,0.41677]
[1730765381347,3.2078,2400.8,2400.7,0.63388062]
[1730765383448,4.41588998,2401.1,2400.7,0.56506274]
[1730765383644,0.41673,2400.9,2400.8,0.63385062]
[1730765383943,3.99917998,2401.1,2400.8,0.21711062]
[1730765384150,0.41673,2401.0,2400.9,0.21711062]
[1730765385154,4.41589998,2401.1,2400.9,1.18673639]
[1730765385453,4.41589998,2401.1,2401.0,0.21758716]
[1730765386052,4.41589998,2401.1,2401.0,0.56620852]
[1730765386249,4.41589998,2401.1,2401.0,0.21758716]
[1730765387045,0.41672,2401.1,2401.0,0.21758716]
[1730765387251,0.4167,2401.1,2401.0,0.21758716]
[1730765387453,0.4167,2401.1,2401.0,0.56650656]
[1730765387652,3.62449,2401.2,2401.1,0.4167]
[1730765387856,3.2078,2401.2,2401.1,0.98320656]
[1730765388150,3.99917998,2401.4,2401.2,0.41668]
[1730765388151,4.41583998,2401.4,2401.2,0.41668]
[1730765388363,4.41583998,2401.4,2401.3,0.21758716]
[1730765391757,7.62363998,2401.4,2401.3,0.21758716]
[1730765392950,0.4167,2401.2,2401.0,0.41672]
[1730765393146,0.4167,2401.2,2401.1,0.56776442]
[1730765395351,3.66839114,2401.2,2401.1,0.56776442]
[1730765396155,3.25169114,2401.2,2401.1,0.63504754]
[1730765396350,3.25169114,2401.2,2401.1,0.4167]
[1730765396554,3.25169114,2401.2,2401.1,0.2184295]
[1730765396555,3.66838114,2401.2,2401.1,0.2184295]
[1730765397151,3.66838114,2401.2,2401.1,0.6351295]
[1730765398352,3.25169114,2401.2,2401.1,0.6351295]
[1730765398860,1.3199,2401.5,2401.1,4.3832295]
[1730765399048,1.3199,2401.5,2401.2,0.56801824]
[1730765399251,4.57159114,2401.5,2401.3,0.2184295]
[1730765399452,3.62446,2401.4,2401.2,0.41667]
[1730765399654,3.2078,2401.4,2401.3,0.21847389]
[1730765399856,4.98823114,2401.5,2401.3,0.21847389]
[1730765400058,4.98823114,2401.5,2401.0,3.2078]
[1730765400256,4.98823114,2401.5,2401.3,0.41665]
[1730765400452,4.57159114,2401.5,2401.1,0.41669]
[1730765400757,4.57159114,2401.5,2401.2,0.21843279]
[1730765400758,0.41667,2401.3,2401.2,0.21843279]
[1730765401062,0.41667,2401.3,2401.2,0.63511279]
[1730765401266,0.41666,2401.4,2401.2,0.63511279]
[1730765401462,0.41666,2401.4,2401.3,0.21843279]
[1730765401957,4.57159114,2401.5,2401.3,0.21846021]
[1730765402164,1.3199,2401.5,2401.4,0.63516989]
[1730765402665,1.73653,2401.5,2401.4,0.21851989]
[1730765403664,1.3199,2401.5,2401.4,0.63516989]
[1730765403967,1.3199,2401.5,2401.4,0.21851989]
[1730765404262,4.98822114,2401.5,2401.4,0.21851989]
[1730765404460,9.15222114,2401.5,2401.4,0.21851989]
[1730765404655,8.73559114,2401.5,2400.8,0.55910573]
[1730765404862,0.41676,2400.8,2400.7,0.41676]
[1730765405065,3.25169114,2400.9,2400.8,0.41675]
[1730765405267,3.25169114,2400.9,2400.8,0.76700197]
[1730765405564,6.45949114,2401.2,2401.1,0.4167]
[1730765405767,6.45949114,2401.2,2400.7,1.04191]
[1730765405768,3.25169114,2401.4,2400.7,1.04191]
[1730765405973,3.25169114,2401.4,2401.3,0.41667]
[1730765406267,4.94434,2401.5,2401.3,0.76644038]
[1730765406455,4.94434,2401.5,2401.3,0.41667]
[1730765406658,4.5277,2401.5,2401.4,0.41665]
[1730765406854,1.3199,2401.5,2401.4,0.76642529]
[1730765407062,1.3199,2401.5,2401.4,5.49003779]
[1730765407463,1.3199,2401.5,2401.4,1.32603779]
[1730765409162,1.3199,2401.5,2401.4,2.22258452]
[1730765409357,1.3199,2401.5,2401.4,0.7668656]
[1730765409570,1.3199,2401.5,2401.4,5.49122117]
[1730765409762,1.3199,2401.5,2401.4,7.77319403]
[1730765410068,1.3199,2401.5,2401.4,9.39428092]
[1730765410270,1.3199,2401.5,2401.4,7.47772144]
[1730765410463,1.3199,2401.5,2401.4,7.40559578]
[1730765410662,1.3199,2401.5,2401.4,9.39270938]
[1730765410961,1.3199,2401.5,2401.4,8.98844068]
[1730765411169,0.04055316,2401.5,2401.4,8.98844068]
[1730765411666,0.04055316,2401.5,2401.4,10.62244098]
[1730765411872,0.04055316,2401.5,2401.4,8.98844068]
[1730765412070,0.04055316,2401.5,2401.4,8.69348448]
[1730765412373,0.04055316,2401.5,2401.4,10.07744556]
[1730765412575,0.04055316,2401.5,2401.4,8.98786582]
[1730765412759,0.04055316,2401.5,2401.4,7.18161108]
[1730765413072,6.87603114,2402.1,2401.9,0.41655]
[1730765413272,6.87602114,2402.1,2402.0,0.34986536]
[1730765413757,11.03922114,2402.1,2402.0,0.34986536]
[1730765413962,51.83922114,2402.1,2402.0,0.34986536]
[1730765415166,51.42269114,2402.1,2401.9,0.41656]
[1730765415370,0.41654,2402.0,2401.5,1.93658967]
[1730765415575,0.41654,2402.0,2401.9,0.41656]
[1730765415865,0.41654,2402.0,2401.9,0.34965103]
[1730765415866,4.57974,2402.0,2401.9,0.34965103]
[1730765416073,4.57975,2402.0,2401.8,0.41658]
[1730765416276,0.41655,2402.0,2401.8,0.41658]
[1730765416864,0.41655,2402.0,2401.9,0.21845302]
[1730765417662,44.0078,2402.1,2401.9,0.21845302]
[1730765417862,44.0078,2402.1,2402.0,0.63499302]
[1730765418059,3.2078,2402.4,2402.0,1.54367639]
[1730765418270,0.9054,2402.8,2402.5,0.41644]
[1730765418271,3.2078,2402.7,2402.5,0.41644]
[1730765418462,3.2078,2402.7,2402.6,0.63489302]
[1730765418663,40.8,2402.7,2402.6,0.63489302]
[1730765419065,41.21642,2402.7,2402.6,0.21845302]
[1730765419874,41.21642,2402.7,2402.5,0.41645]
[1730765420767,40.8,2402.7,2402.2,3.2078]
[1730765420970,40.8,2402.7,2402.6,0.41644]
[1730765421170,40.8,2402.7,2402.6,0.63447075]
[1730765421472,0.41648,2402.4,2402.2,3.62431]
[1730765422064,0.41647,2402.5,2402.2,3.62431]
[1730765422269,0.41648,2402.4,2402.2,3.2078]
[1730765422468,0.41648,2402.4,2402.2,3.6243]
[1730765422869,44.48579114,2402.7,2402.2,3.2078]
[1730765423060,0.41648,2402.4,2402.2,3.62431]
[1730765423575,0.41648,2402.4,2402.1,0.4538]
[1730765423766,0.41648,2402.4,2401.8,1.216]
[1730765423767,3.2078,2402.2,2401.8,1.216]
[1730765423969,0.41654,2402.1,2401.9,0.21793226]
[1730765424170,0.41654,2402.1,2401.9,0.41656]
[1730765424670,0.41654,2402.1,2401.8,1.216]
[1730765424671,7.50079114,2402.2,2401.5,3.6387]
[1730765424873,4.1632,2402.0,2401.5,3.62442]
[1730765425179,0.41662,2401.6,2401.4,0.41664]
[1730765425366,0.41662,2401.6,2401.1,3.2078]
[1730765425571,44.0078,2401.9,2401.2,0.56695114]
[1730765425878,0.41663,2401.5,2401.3,0.63469478]
[1730765426074,0.41662,2401.6,2401.4,0.63467478]
[1730765426377,0.41662,2401.6,2401.4,0.41664]
[1730765426874,3.2078,2401.8,2401.1,1.04176]
[1730765427064,41.21657,2401.9,2401.6,0.4166]
[1730765427267,41.21657,2401.9,2401.0,8.57399114]
[1730765427268,0.41663,2401.6,2401.3,3.2078]
[1730765427470,0.41663,2401.6,2401.4,0.21805225]
[1730765427772,0.41663,2401.6,2401.5,0.21805225]
[1730765428175,3.2078,2401.8,2401.5,0.21805225]
[1730765428377,0.4166,2401.7,2401.5,0.41663]
[1730765428975,3.2078,2401.8,2401.3,4.24946]
[1730765429175,40.8,2401.9,2401.4,0.21807295]
[1730765429484,0.41662,2401.6,2401.5,0.21807295]
[1730765429985,0.41661,2401.7,2401.5,0.63470295]
[1730765430279,0.41661,2401.7,2401.5,0.41663]
[1730765430482,3.62439,2401.8,2401.6,0.41661]
[1730765430777,0.41658,2401.8,2401.6,0.4166]
[1730765430982,40.8,2401.9,2401.3,4.24945]
[1730765431180,40.8,2401.9,2401.8,0.41658]
[1730765431374,40.8,2401.9,2401.8,0.6346595]
[1730765433773,40.8,2401.9,2401.8,5.14685254]
[1730765434175,40.8,2401.9,2401.8,4.57978]
[1730765434376,3.2078,2402.5,2401.8,0.56702402]
[1730765434579,0.41648,2402.4,2402.2,0.4165]
[1730765434782,3.2078,2402.5,2401.7,8.39548114]
[1730765434982,0.41645,2402.6,2402.0,3.2078]
[1730765435183,0.41644,2402.6,2402.1,2.17029371]
[1730765435380,0.41644,2402.6,2402.4,0.41646]
[1730765435579,41.21643,2402.7,2402.6,0.41644]
[1730765435782,41.21643,2402.7,2402.2,0.4655]
[1730765436094,40.8,2402.7,2402.6,0.41644]
[1730765436278,40.8,2402.7,2402.6,0.63437413]
[1730765436481,40.8,2402.7,2402.6,0.98292077]
[1730765436678,40.8,2402.7,2402.6,5.14531453]
[1730765437080,0.4164,2402.9,2402.6,4.72887453]
[1730765437382,0.41644,2402.6,2402.5,0.41645]
[1730765437584,0.41644,2402.6,2402.5,0.21779104]
[1730765437888,3.2078,2402.7,2402.0,3.2078]
[1730765438080,3.2078,2402.7,2402.3,0.41647]
[1730765438081,0.41646,2402.5,2402.3,0.41647]
[1730765438290,3.2078,2402.7,2402.0,3.2078]
[1730765438589,0.41648,2402.4,2402.3,0.41649]
[1730765438790,0.41648,2402.4,2402.3,0.63434157]
[1730765439385,3.2078,2402.7,2402.3,0.63432157]
[1730765439684,3.2078,2402.7,2402.0,3.2078]
[1730765439685,3.62423,2402.7,2402.5,0.41646]
[1730765440190,41.21638,2403.0,2402.7,0.41641]
[1730765440492,0.41641,2402.8,2402.6,0.41643]
[1730765440789,40.8,2403.0,2402.4,0.443]
[1730765440982,40.8,2403.0,2402.6,3.2078]
[1730765441182,40.8,2403.0,2402.9,0.41639]
[1730765441381,40.8,2403.0,2402.7,0.21776401]
[1730765441584,40.8,2403.0,2402.9,0.41639]
[1730765441784,40.8,2403.0,2402.9,0.63415401]
[1730765442278,41.21637,2403.0,2402.9,0.21776401]
[1730765442483,44.9616,2403.0,2402.5,0.4612]
[1730765442791,40.8,2403.0,2402.6,0.217682]
[1730765443088,0.4164,2402.9,2402.7,0.217682]
[1730765443291,40.8,2403.0,2402.5,0.4612]
[1730765443479,0.41639,2402.9,2402.7,0.41642]
[1730765443790,0.41639,2402.9,2402.7,0.41641]
[1730765443978,40.8,2403.0,2402.6,0.41644]
[1730765443979,41.21638,2403.0,2402.6,0.41644]
[1730765444178,41.21638,2403.0,2402.7,0.63408601]
[1730765444381,0.41639,2402.9,2402.7,0.41641]
[1730765444591,0.41639,2402.9,2402.5,0.4612]
[1730765444592,40.8,2403.0,2402.8,0.21766646]
[1730765444791,40.8,2403.0,2402.9,0.41639]
[1730765446194,40.8,2403.0,2402.9,0.63404339]
[1730765446987,41.21637,2403.0,2402.9,0.21765339]
[1730765447185,0.4164,2402.9,2402.7,0.41642]
[1730765447390,0.4164,2402.9,2402.8,0.21765663]
[1730765447690,40.8,2403.0,2402.6,3.62423]
[1730765447890,0.41641,2402.8,2402.7,0.21767731]
[1730765448196,0.41642,2402.7,2402.6,3.2078]
[1730765448694,40.8,2403.0,2402.6,3.42551911]
[1730765448898,0.41642,2402.7,2402.6,3.2078]
[1730765449191,40.8,2403.0,2402.6,3.42552624]
[1730765449390,40.8,2403.0,2402.7,0.217697]
[1730765449590,0.41639,2402.9,2402.7,0.41642]
[1730765450195,0.41642,2402.7,2402.6,3.2078]
[1730765450488,0.41641,2402.8,2402.6,3.84189723]
[1730765450695,40.8,2403.0,2402.7,0.21766723]
[1730765450888,0.41642,2402.8,2402.6,3.62423]
[1730765451088,0.41642,2402.8,2402.7,0.21760009]
[1730765454996,0.41642,2402.8,2402.6,3.62424]
[1730765455302,40.8,2403.0,2402.7,0.21775577]
[1730765455494,40.8,2403.0,2402.9,0.41639]
[1730765455685,40.8,2403.0,2402.9,0.63413896]
[1730765455995,41.21637,2403.0,2402.9,0.21774896]
[1730765456196,40.8,2403.0,2402.9,0.63413896]
[1730765457298,0.4602,2403.3,2403.1,0.41634]
[1730765457492,0.41632,2403.4,2403.2,0.41632]
[1730765457691,0.4679,2403.6,2403.2,0.41632]
[1730765457893,0.4163,2403.4,2403.2,0.41632]
[1730765458089,0.41631,2403.4,2403.2,0.41632]
[1730765458702,0.41631,2403.4,2403.2,0.41633]
[1730765459391,41.21629,2403.5,2403.3,0.41631]
[1730765459594,40.8,2403.5,2403.0,0.4373]
[1730765459893,0.41631,2403.4,2403.2,0.41633]
[1730765460500,3.2078,2403.4,2402.6,3.2078]
[1730765460690,0.41638,2403.0,2402.8,0.98187026]
[1730765460890,0.41638,2403.0,2402.9,0.21746911]
[1730765461093,0.41638,2403.0,2402.9,0.63385911]
[1730765461491,0.41638,2403.0,2402.9,0.21746911]
[1730765461692,4.29249114,2403.3,2402.6,4.06903]
[1730765461897,4.29249114,2403.3,2402.7,0.63395836]
[1730765461898,0.41641,2402.8,2402.7,0.63395836]
[1730765462396,1.04087,2403.2,2402.7,0.63395836]
[1730765462599,0.41639,2403.0,2402.8,0.63393836]
[1730765462791,0.41639,2402.9,2402.7,0.41641]
[1730765462988,4.29249114,2403.3,2402.6,3.6526]
[1730765462989,1.04086,2403.2,2402.6,3.6526]
[1730765463193,0.41641,2402.8,2402.7,0.21762915]
[1730765463398,0.41641,2402.8,2402.7,0.63404915]
[1730765463596,3.6613,2403.4,2402.7,0.63404915]
[1730765463597,4.35597554,2404.4,2402.7,0.63404915]
[1730765463812,6.54379692,2407.5,2405.5,3.2078]
[1730765464001,10.411,2412.1,2402.8,12.91363803]
[1730765464002,4.26379692,2408.0,2407.4,3.2078]
[1730765464198,3.2078,2409.9,2408.4,0.41543]
[1730765464199,0.41527,2409.4,2408.4,0.41543]
[1730765464499,3.2078,2410.2,2409.2,3.2078]
[1730765464696,0.41516,2410.0,2409.9,3.2078]
[1730765464899,0.4261,2410.4,2410.1,6.50338228]
[1730765465105,0.41511,2410.3,2410.2,3.2078]
[1730765465302,40.8,2410.3,2410.2,6.45949114]
[1730765465519,40.8,2410.3,2410.2,7.54866781]
[1730765465697,40.8,2410.3,2410.2,7.04903354]
[1730765465900,40.8,2410.3,2410.2,3.7973424]
[1730765466303,0.4261,2410.4,2410.2,4.26996306]
[1730765466500,0.4261,2410.4,2410.3,0.24572505]
[1730765466805,0.4261,2410.4,2410.3,1.22317512]
[1730765467400,41.2261,2410.4,2410.3,1.22317512]
[1730765467602,41.2261,2410.4,2410.3,0.24572505]
[1730765468001,41.2261,2410.4,2410.3,0.24869818]
[1730765468295,45.3749,2410.4,2410.2,3.2078]
[1730765468700,45.3749,2410.4,2409.9,3.2078]
[1730765468903,45.3749,2410.4,2410.0,0.2479481]
[1730765468904,41.2261,2410.4,2410.0,0.2479481]
[1730765469202,41.2261,2410.4,2409.9,3.2078]
[1730765469203,0.41512,2410.3,2409.9,3.2078]
[1730765469401,44.849,2410.4,2409.9,3.2078]
[1730765469599,41.2261,2410.4,2409.9,3.2078]
[1730765469797,4.1488,2410.3,2409.9,3.2078]
[1730765470608,41.2261,2410.4,2409.9,3.2078]
[1730765471407,0.41511,2410.3,2409.9,3.2078]
[1730765471710,4.1488,2410.3,2409.9,3.2078]
[1730765472304,0.4261,2410.4,2409.9,3.2078]
[1730765472609,0.4261,2410.4,2409.9,3.19335575]
[1730765472799,4.6198,2410.8,2409.3,0.209]
[1730765472800,40.8,2410.0,2409.3,0.209]
[1730765473013,3.2078,2410.8,2409.9,3.2078]
[1730765473203,4.1488,2410.3,2410.2,3.2078]
[1730765473600,3.2078,2410.8,2410.2,3.2078]
[1730765473911,40.8,2410.3,2410.2,3.2078]
[1730765474208,40.8,2410.3,2409.9,3.2078]
[1730765475104,44.9496,2410.3,2409.9,3.2078]
[1730765475797,0.41513,2410.2,2409.4,3.4168]
[1730765475997,44.9496,2410.3,2409.7,3.2078]
[1730765476303,40.8,2410.3,2409.7,3.2078]
[1730765476499,40.8,2410.3,2409.7,3.62301]
[1730765476806,40.8,2410.3,2409.7,3.623]
[1730765477109,4.1496,2410.2,2410.0,3.2078]
[1730765477805,40.8,2410.3,2410.0,3.2078]
[1730765478302,4.1496,2410.1,2410.0,3.2078]
[1730765479111,44.9496,2410.1,2410.0,3.2078]
[1730765479311,44.9496,2410.1,2410.0,3.62296]
[1730765479702,40.8,2410.1,2410.0,3.62296]
[1730765479906,3.2078,2410.6,2410.0,3.62296]
[1730765480408,0.41508,2410.5,2409.7,3.623]
[1730765480612,0.41508,2410.5,2409.8,0.41519]
[1730765480613,4.1488,2410.5,2409.8,0.41519]
[1730765480905,40.8,2410.1,2410.0,3.2078]
[1730765481307,44.9496,2410.1,2410.0,3.2078]
[1730765481514,44.9496,2410.1,2410.0,3.62296]
[1730765481702,40.8,2410.1,2410.0,3.2078]
[1730765483507,40.8,2410.1,2410.0,3.62296]
[1730765484813,40.8,2410.1,2410.0,3.2078]
[1730765485005,44.9496,2410.1,2410.0,3.2078]
[1730765485414,44.9496,2410.1,2409.8,3.2078]
[1730765485628,40.8,2410.1,2409.8,3.62298]
[1730765485918,40.8,2410.1,2409.8,3.62299]
[1730765486119,4.1496,2410.0,2409.8,3.62299]
[1730765486324,4.1496,2410.0,2409.9,0.41518]
[1730765486822,40.8,2410.1,2410.0,0.41516]
[1730765487729,40.8,2410.1,2409.9,0.41517]
[1730765487919,41.21515,2410.1,2409.8,3.2078]
[1730765488120,40.8,2410.1,2409.8,3.2078]
[1730765488833,40.8,2410.1,2409.2,0.209]
[1730765488834,4.56477,2410.0,2409.5,3.2078]
[1730765489333,40.8,2410.1,2409.8,3.2078]
[1730765489727,44.9496,2410.1,2409.8,3.2078]
[1730765490128,41.21515,2410.1,2409.8,3.2078]
[1730765490727,0.41516,2410.0,2409.8,3.2078]
[1730765491031,41.21515,2410.1,2409.8,3.2078]
[1730765491424,41.21516,2410.1,2409.8,3.2078]
[1730765491832,0.41517,2410.0,2409.8,3.2078]
[1730765492027,41.21515,2410.1,2409.8,3.2078]
[1730765492234,0.41517,2410.0,2409.8,3.2078]
[1730765492625,40.8,2410.1,2409.8,3.2078]
[1730765492826,40.8,2410.1,2409.8,3.62299]
[1730765493633,40.8,2410.1,2409.8,3.2078]
[1730765494237,40.8,2410.1,2410.0,0.41516]
[1730765494533,44.601,2410.1,2410.0,0.41516]
[1730765494923,3.801,2410.1,2410.0,0.41516]
[1730765495134,3.801,2411.1,2409.9,0.4375]
[1730765495336,0.41505,2410.7,2410.5,3.2078]
[1730765495635,0.41505,2410.7,2409.9,0.4375]
[1730765495636,0.4151,2410.4,2410.1,3.2078]
[1730765495832,0.41509,2410.5,2410.1,3.62293]
[1730765496037,0.41501,2410.9,2410.4,3.2078]
[1730765496224,40.8,2411.0,2410.4,3.2078]
[1730765496425,0.41506,2410.7,2410.4,3.2078]
[1730765496827,0.41504,2410.8,2410.4,3.2078]
[1730765497030,40.8,2411.0,2410.4,3.2078]
[1730765497227,0.41507,2410.6,2410.4,3.2078]
[1730765498032,40.8,2411.0,2410.4,3.2078]
[1730765498233,0.41506,2410.6,2410.4,3.2078]
[1730765498430,0.41505,2410.7,2410.4,3.2078]
[1730765498733,40.8,2411.0,2410.4,3.2078]
[1730765498939,0.41507,2410.6,2410.4,3.2078]
[1730765499545,40.8,2411.0,2410.4,3.2078]
[1730765499838,40.8,2411.0,2410.2,0.41512]
[1730765499839,0.41514,2410.2,2410.0,3.2078]
[1730765500033,0.41514,2410.1,2410.0,3.2078]
[1730765500528,3.2078,2410.9,2410.0,3.2078]
[1730765500734,40.8,2410.1,2410.0,3.2078]
[1730765501338,40.8,2410.1,2410.0,3.62296]
[1730765501740,40.8,2410.1,2410.0,3.2078]
[1730765503938,1.03761,2410.7,2410.0,3.2078]
[1730765504141,0.41514,2410.1,2410.0,3.2078]
[1730765504843,4.1496,2410.1,2409.5,3.2078]
[1730765505033,39.8,2410.0,2409.5,3.2078]
[1730765505440,39.8,2410.0,2409.0,3.2078]
[1730765505441,0.41531,2409.2,2409.0,3.2078]
[1730765505640,3.801,2409.2,2409.0,3.2078]
[1730765506533,3.801,2409.2,2409.1,0.41532]
[1730765507146,3.801,2409.2,2409.1,4.56652]
[1730765507539,3.801,2409.2,2409.1,5.79957671]
[1730765507748,3.801,2409.2,2409.1,7.80765135]
[1730765508043,3.801,2409.2,2409.1,6.21489671]
[1730765508257,3.801,2409.2,2409.1,12.22247265]
[1730765508548,3.801,2409.2,2409.1,13.0000957]
[1730765508940,3.801,2409.2,2409.1,11.19815245]
[1730765509239,0.41525,2409.5,2409.3,0.41528]
[1730765509450,0.41525,2409.5,2409.4,16.40422068]
[1730765509640,0.41522,2409.7,2409.4,16.85878599]
[1730765509840,0.41522,2409.7,2409.6,3.76834781]
[1730765509841,0.41521,2409.7,2409.6,3.76834781]
[1730765510041,3.801,2409.9,2409.6,15.20233744]
[1730765510244,3.801,2409.9,2409.8,3.84855634]
[1730765510439,0.41517,2410.0,2409.8,27.69722643]
[1730765510645,3.801,2410.2,2409.9,24.03697367]
[1730765510951,4.21613,2410.2,2410.1,6.97994524]
[1730765511243,4.21613,2410.2,2410.1,14.64178963]
[1730765511442,4.21613,2410.2,2410.1,19.06678413]
[1730765511843,4.21613,2410.2,2410.1,14.6542509]
[1730765512242,3.801,2410.2,2410.1,15.0693909]
[1730765512853,3.801,2410.2,2410.1,23.2913314]
[1730765513047,3.801,2410.4,2410.1,14.6542509]
[1730765513248,3.801,2410.4,2410.2,12.87760092]
[1730765513442,0.41511,2410.3,2410.2,4.41188311]
[1730765513748,0.41511,2410.3,2410.2,16.64687843]
[1730765513948,0.41511,2410.3,2410.2,16.30095975]
[1730765514150,0.41511,2410.3,2410.2,16.30084434]
[1730765514954,3.801,2410.4,2410.2,16.30084434]
[1730765515251,3.801,2410.4,2410.3,16.30084434]
[1730765515546,4.21609,2410.4,2410.3,16.30084434]
[1730765515752,4.21609,2410.4,2410.3,15.12146089]
[1730765515946,4.21609,2410.4,2410.3,11.88996955]
[1730765516149,8.36489,2410.4,2410.3,6.62752252]
[1730765516451,8.36489,2410.4,2410.3,2.80627252]
[1730765520546,8.36489,2410.4,2410.3,1.62840454]
[1730765521155,4.21609,2410.4,2410.3,6.83875963]
[1730765521551,4.21609,2410.4,2410.3,1.62840454]
[1730765521750,4.21609,2410.4,2410.3,4.32183885]
[1730765521751,8.36489,2410.4,2410.3,4.32183885]
[1730765522455,8.36489,2410.4,2410.3,1.62840454]
[1730765523465,8.3649,2410.4,2410.2,1.07813698]
[1730765523756,8.3649,2410.4,2410.1,3.62294]
[1730765523757,3.801,2410.4,2410.1,4.28593698]
[1730765523957,0.41512,2410.3,2410.1,4.28593698]
[1730765524157,4.2161,2410.4,2410.1,4.70107698]
[1730765524452,0.41511,2410.3,2410.1,4.28593698]
[1730765524760,0.41513,2410.2,2410.1,4.28593698]
[1730765524956,0.41513,2410.2,2410.1,3.2078]
[1730765525558,3.801,2410.4,2410.1,4.28593698]
[1730765525859,0.41512,2410.3,2410.1,4.28593698]
[1730765526054,3.801,2410.4,2410.1,3.2078]
[1730765526363,4.2161,2410.4,2410.1,4.70107698]
[1730765526657,3.801,2410.4,2410.2,0.41512]
[1730765526851,3.0953,2410.4,2410.3,1.49324698]
[1730765527054,0.41504,2410.8,2410.4,0.41508]
[1730765527254,0.41505,2410.7,2410.6,3.2078]
[1730765527663,45.36305,2410.7,2410.6,3.2078]
[1730765528057,41.21505,2410.7,2410.6,3.2078]
[1730765529653,40.8,2410.7,2410.6,3.62286]
[1730765529862,40.8,2410.7,2410.6,3.2078]
[1730765530356,0.41509,2410.4,2410.3,3.2078]
[1730765530556,44.948,2410.7,2410.3,3.2078]
[1730765530756,0.41509,2410.4,2410.3,3.2078]
[1730765530960,40.8,2410.7,2410.3,3.2078]
[1730765531258,40.8,2410.7,2410.6,3.2078]
[1730765531864,41.21504,2410.7,2410.6,3.2078]
[1730765532056,41.21504,2410.7,2410.6,3.42046382]
[1730765532258,0.41509,2410.4,2410.3,3.2078]
[1730765532456,0.41509,2410.4,2410.3,3.4205896]
[1730765533061,4.56389,2410.4,2410.3,3.4205896]
[1730765535568,4.56389,2410.4,2410.3,3.42064463]